Cogmind - Beta 16 @@@ ROGUE MODE // 2025.12.14 @ 23:50:17 Player: AngelSpirit Result: Destroyed by P-60 Hacker with Shock Rifle Performance ------------- Evolutions (3) 1500 Regions Visited (6) 1200 Robots Destroyed (113) 565 Value Destroyed (4116) 4116 Prototype IDs (23) 460 Alien Tech Used (0) 0 Bonus (267) 267 TOTAL SCORE: 8108 Bonus ------- High Alert Combat Kills 67 Entered Garrisons 200 Cogmind --------- Core Integrity 0/700 Matter 290/300 Energy 9/100 System Corruption 11% Temperature Cool (0) Movement Flying (40) Location -7/Factory Parts ------- > --- POWER (1) -------- (None) > --- PROPULSION (3) --- Xenon Bombardment Thruster > --- UTILITY (6) ------ Improved Sensor Array Improved Signal Interpreter Melee Analysis Suite Hacking Suite Hacking Suite > --- WEAPON (3) ------- Katana > --- INVENTORY (5) ---- Meta Core Armored Huge Wheel Mini Assault Cannon Heavy Missile Launcher Peak State ------------ > --- POWER ------------ Micro Nuclear Core > --- PROPULSION ------- Gravmag System Gravmag System Xenon Bombardment Thruster > --- UTILITY ---------- Improved Heat Sink Coolant Injector Improved Sensor Array Improved Signal Interpreter Hacking Suite System Restoration Module > --- WEAPON ----------- High-powered Shotgun Precision Assault Rifle Power Maul > --- INVENTORY -------- Meta Core Armored Huge Wheel Compact Matter Pod Missile Launcher [Rating: 50] Favorites ----------- Power Reinforced Deuterium Engine Engine Reinforced Deuterium Engine Power Core Light Nuclear Core Propulsion Compact Wheel Leg Carbon-fiber Leg Wheel Compact Wheel Hover Unit Gravmag System Flight Unit VTOL Module Utility Huge Storage Unit Device Improved Sensor Array Storage Huge Storage Unit Processor Improved Signal Interpreter Hackware Hacking Suite Protection Hardened Light Armor Plating Weapon Advanced Beam Rifle Energy Gun Advanced Beam Rifle Energy Cannon Subdweller Beam Cannon Ballistic Gun Enhanced Autogun Ballistic Cannon Light Cannon Launcher Missile Launcher Impact Weapon Power Maul Slashing Weapon Katana Build | -11 -10 -10 -8 -7 -7 -7 ------- Run | Yrd Mat Sub Mat Fac Gar Fac Slots Evolved 6 | . . . 4 2 . . Power . | . . . . . . . Propulsion 1 | . . . 1 . . . Utility 4 | . . . 3 1 . . Weapon 1 | . . . . 1 . . Parts Attached 130 | 6 13 15 29 22 20 25 Power 15 | 1 2 3 5 1 2 1 Engine 12 | 1 1 3 4 1 2 . Core 3 | . 1 . 1 . . 1 Reactor . | . . . . . . . Propulsion 30 | 2 1 3 9 6 6 3 Treads . | . . . . . . . Leg 4 | . . . . . 4 . Wheel 22 | 2 1 3 9 6 1 . Hover 2 | . . . . . . 2 Flight 2 | . . . . . 1 1 Utility 40 | 1 2 3 8 8 7 11 Device 16 | . . 1 4 2 3 6 Storage 2 | 1 1 . . . . . Processor 8 | . . . 2 2 1 3 Hackware 4 | . . . . 2 . 2 Protection 10 | . 1 2 2 2 3 . Artifact . | . . . . . . . Weapon 45 | 2 8 6 7 7 5 10 Energy Gun 9 | 1 2 1 2 . 1 2 Energy Cannon 3 | . 1 1 . 1 . . Ballistic Gun 18 | 1 2 2 2 4 3 4 Ballistic Cannon 6 | . 1 2 . 1 . 2 Launcher 6 | . 1 . 3 1 1 . Special Weapon . | . . . . . . . Impact Weapon 2 | . 1 . . . . 1 Slashing Weapon 1 | . . . . . . 1 Piercing Weapon . | . . . . . . . Special Melee Weapon . | . . . . . . . Unidentified Prototypes 9 | . . . 4 2 . 3 Parts Lost 50 | . 3 5 11 3 24 4 Power 4 | . 1 2 . . 1 . Propulsion 19 | . 1 2 5 3 7 1 Utility 12 | . . . 1 . 10 1 Weapon 15 | . 1 1 5 . 6 2 Highest Loss Streak 7 | . 2 1 3 2 7 3 To Critical Strikes . | . . . . . . . Average Backups 16 | . 7 16 19 23 15 3 Power 1 | . . 1 2 2 1 . Propulsion 3 | . . 5 4 2 . . Utility 6 | . 2 3 8 12 9 1 Weapon 2 | . 1 4 2 2 2 1 Tool/Special . | . . . . . . . Unused Backups 21 | . . 1 2 7 6 5 Power 5 | . . . . 4 1 . Propulsion 2 | . . . 1 . . 1 Utility 9 | . . 1 1 1 4 2 Weapon 2 | . . . . 1 . 1 Tool/Special 3 | . . . . 1 1 1 Average Slot Usage (%) 92 | . 93 98 98 99 69 77 Engine 6 | . 7 8 8 3 5 2 Core 2 | . 5 4 . 3 . 3 Wheel 21 | . 28 27 26 22 7 . Hover 1 | . . . . . . 11 Device 9 | . . 6 15 6 2 15 Storage 8 | . 14 14 9 7 4 . Processor 8 | . . . 10 16 11 11 Hackware 2 | . . . . 8 5 7 Protection 7 | . 8 7 9 4 8 . Energy Gun 5 | . 12 . 6 . 2 7 Energy Cannon 3 | . 2 12 1 4 . . Ballistic Gun 7 | . 7 8 6 10 8 3 Ballistic Cannon 3 | . 4 4 2 5 . 2 Peak Build Rating 50 | 6 12 14 34 47 47 50 Average Rating 26 | 4 9 12 28 41 34 36 On Entrance 17 | . 6 12 14 31 46 10 Avg Prop Armor Cover (%) 4 | . . . . 3 8 4 Naked Turns . | . . . . . . . Heaviest Build 117 | 12 96 102 112 117 115 19 Greatest Support 56 | 20 26 40 56 48 40 26 Greatest Overweight (x) 11 | . 4 5 4 6 11 1 Average Overweight (x) 1 | . 3 2 1 2 2 . Largest Inventory Capacity 25 | 8 25 25 25 25 25 5 Average Capacity 22 | 7 24 25 25 25 18 5 Most Carried 25 | . 16 19 25 25 25 5 Average Carried 16 | . 7 16 20 23 15 4 Final Capacity 25 | 8 25 25 25 25 5 5 Final Carried 25 | . 16 14 25 25 4 5 Class Distribution -------------------- 63% | Mutant 14% | Skirmisher 10% | Scavenger-Mutant 3% | Hacker-Skirmisher 3% | Scavenger-Skirmisher Dominant Class ---------------- Mutant | -10/Materials Mutant | -10/Subcaves Mutant | -8/Materials Skirmisher | -7/Factory Scavenger-Mutant | -7/Garrison Mutant | -7/Factory Resources | -11 -10 -10 -8 -7 -7 -7 ----------- Run | Yrd Mat Sub Mat Fac Gar Fac Matter Collected 4595 | 244 349 487 1154 684 1120 557 Remotely . | . . . . . . . Salvage Created 4283 | . 677 228 1428 747 871 332 Parts 222 | . 47 12 91 26 27 19 Haulers Intercepted 3 | . 1 . 1 1 . . Recyclers Shooed 4 | . 1 . 2 1 . . Parts Field Recycled . | . . . . . . . Retrieved Matter . | . . . . . . . Parts Self-Destructed 10 | . . 10 . . . . Prevented . | . . . . . . . Parts Restored . | . . . . . . . Kills | -11 -10 -10 -8 -7 -7 -7 ------- Run | Yrd Mat Sub Mat Fac Gar Fac Combat Hostiles Destroyed 107 | . 12 10 29 13 40 3 Guns 56 | . 10 . 16 6 22 2 Cannons 19 | . . 3 7 7 1 1 AOE 32 | . 2 7 6 . 17 . Classes Destroyed 17 | . 9 1 4 2 1 . Worker 5 | . 1 . 2 1 . 1 Builder 3 | . 2 . 1 . . . Tunneler 1 | . 1 . . . . . Hauler 3 | . 1 . 1 1 . . Recycler 8 | . 2 . 2 2 . 2 Operator 5 | . 2 . 1 . . 2 Watcher 8 | . 3 . 4 1 . . Swarmer 14 | . 3 . 8 . 3 . Grunt 38 | . 9 1 12 10 6 . Brawler 1 | . . . 1 . . . Duelist 1 | . . . 1 . . . Sentry 8 | . . . 5 1 2 . Specialist 2 | . . . 2 . . . Hunter 4 | . . . . 1 2 1 Programmer 3 | . . . . 1 . 2 Subdweller 9 | . . 9 . . . . Assembled 27 | . . . . . 27 . Best Kill Streak 17 | . 4 4 5 7 17 2 Combat Bots Only 17 | . 3 4 4 5 17 1 Max Kills in Single Turn 4 | . 2 1 2 2 4 2 Gunslinging . | . . . . . . . Exploded 4 | . 1 1 2 . 4 . Melee . | . . . . . . . Uniques/NPCs Destroyed . | . . . . . . . Combat | -11 -10 -10 -8 -7 -7 -7 -------- Run | Yrd Mat Sub Mat Fac Gar Fac Hostile Shots Fired 655 | . 44 41 138 91 294 47 Missed 202 | . 16 15 42 22 89 18 Hits 453 | . 28 26 96 69 205 29 Melee 30 | . . . 1 . 29 . Projectile 423 | . 28 26 95 69 176 29 Critical Strikes 14 | . 2 1 1 4 3 3 Damage Taken 7508 | . 330 801 1660 814 3457 446 Core 1159 | . 68 147 230 153 449 112 Absorbed by Shields . | . . . . . . . Core Remaining (%) 57 | 100 . 14 58 . . . Volleys Fired 426 | . 60 52 138 49 119 8 Largest 3 | . 2 2 2 3 3 3 Hottest 143 | . 112 110 110 143 133 130 Shots Fired 785 | . 118 77 257 122 191 20 Gun 566 | . 99 25 213 68 147 14 Cannon 159 | . 16 36 35 54 12 6 Launcher 60 | . 3 16 9 . 32 . Special . | . . . . . . . Kinetic 455 | . 56 34 120 112 120 13 Thermal 269 | . 59 27 128 10 39 6 Explosive 60 | . 3 16 9 . 32 . Electromagnetic 1 | . . . . . . 1 Robot Hit Streak 10 | . 10 10 9 10 9 6 Robot Miss Streak 7 | . 5 3 7 5 7 2 Penetration Max 1 | . . . . . 1 . Secondary Targets 2 | . . . . . 2 . Max Gunslinging Chain 1 | . . . . . 1 . Shots Hit Robots 453 | . 73 40 139 74 108 19 Core Hits 272 | . 37 17 67 34 107 10 Critical Kills 2 | . . . . . 2 . Critical Parts Destroyed 4 | . . . 2 . 1 1 Critical Strikes 25 | . 8 . 8 4 3 2 Burn 13 | . 7 . 6 . . . Destroy 5 | . . . 2 . 3 . Blast 5 | . 1 . . 4 . . Corrupt 1 | . . . . . . 1 Smash 1 | . . . . . . 1 Melee Attacks 12 | . 1 . . . . 11 Impact 6 | . 1 . . . . 5 Slashing 6 | . . . . . . 6 Piercing . | . . . . . . . Sneak Attacks 2 | . . . . . . 2 Combat Hostiles . | . . . . . . . Follow-up Attacks . | . . . . . . . Damage Inflicted 12251 | . 1122 1292 3314 1690 4200 633 Guns 5781 | . 839 118 2144 862 1694 124 Cannons 2028 | . 186 414 461 828 101 38 Explosions 4064 | . 97 760 709 . 2405 93 Melee 378 | . . . . . . 378 Ramming . | . . . . . . . Kinetic 4991 | . 449 331 1116 1568 1430 97 Thermal 2894 | . 576 201 1489 122 365 141 Explosive 3971 | . 97 760 709 . 2405 . Electromagnetic 17 | . . . . . . 17 Impact 172 | . . . . . . 172 Slashing 206 | . . . . . . 206 Piercing . | . . . . . . . Highest Corruption 14 | . . . . . 14 14 Average Corruption 12 | . . . . . 12 12 Corruption Purged 4 | . . . . . . 4 Corruption Blocked . | . . . . . . . Effects 36 | . . . . . 17 19 Message Errors 5 | . . . . . 3 2 Matter Fused 16 | . . . . . 7 9 Heat Flow Errors 3 | . . . . . 1 2 Energy Discharges 2 | . . . . . 1 1 Parts Rejected 1 | . . . . . . 1 Data Loss (minor) 3 | . . . . . . 3 Misfires 1 | . . . . . . 1 Alerts 1 | . . . . . 1 . Misdirections 3 | . . . . . 3 . Weapon Failures 1 | . . . . . 1 . Overload Shots . | . . . . . . . Overflow Damage 386 | . . . 48 28 111 199 Projectiles 28 | . . . . 28 . . Explosions 209 | . . . 48 . 111 50 Melee 149 | . . . . . . 149 Knockbacks 15 | . 1 2 4 7 . 1 Impact 1 | . . . . . . 1 Kinetic 13 | . 1 2 3 7 . . Secondary 1 | . . . 1 . . . Self-Inflicted Damage 652 | . . 41 105 . 383 123 Shots 17 | . . 2 3 . 10 2 Rammed . | . . . . . . . Targets Rammed . | . . . . . . . Kicked . | . . . . . . . Crushed . | . . . . . . . Highest Temperature 358 | . 317 10 156 246 358 215 Average Temperature 78 | . 77 5 26 93 129 83 Received Heat Transfer 1578 | . 174 84 504 381 399 36 Effects 4 | . 2 . . 1 1 . Energy Bleed 1 | . . . . 1 . . Interference 2 | . 2 . . . . . Damage (minor) 1 | . . . . . 1 . Siege Activations . | . . . . . . . Martial Activations . | . . . . . . . Shielding Activations . | . . . . . . . Robots Disrupted . | . . . . . . . Combat Hostiles . | . . . . . . . Robots Corrupted 1 | . . . . . . 1 Combat Hostiles . | . . . . . . . Parts Fried 1 | . . . . . . 1 Impact Corruptions 5 | . . . . . . 5 Robots Melted . | . . . . . . . Combat Hostiles . | . . . . . . . Parts Melted 7 | . 3 . 3 1 . . Heat Transferred 6522 | . 2072 370 2951 200 718 211 Parts Sabotaged . | . . . . . . . Parts Stolen . | . . . . . . . Parts Stripped . | . . . . . . . Power Chain Reactions 1 | . . . . . . 1 Alert | -11 -10 -10 -8 -7 -7 -7 ------- Run | Yrd Mat Sub Mat Fac Gar Fac Maximum Alert Level 3 | . . . 1 . 3 2 Low Security (%) 56 | 100 100 . 55 100 8 . Level 1 33 | . . . 44 . 23 98 Level 2 8 | . . . . . 62 1 Level 3 . | . . . . . 5 . Level 4 . | . . . . . . . Level 5 . | . . . . . . . High Security . | . . . . . . . Max Security . | . . . . . . . Peak Influence 757 | . 186 . 324 187 757 400 Initial 396 | . . . 7 134 118 396 Average 209 | . 97 . 188 57 469 345 Influence Increases 3091 | . 486 30 1019 397 879 280 Destroy 0b10 Robot/C 1420 | . 240 20 580 260 260 60 Destroy 0b10 Robot/NC 175 | . 60 . 55 25 10 25 Destroy Leader 302 | . 58 10 130 44 30 30 Successful Hack 144 | . 26 . 45 12 . 61 Select Force Hacks 60 | . 30 . 30 . . . Disable Machine 180 | . 45 . 45 30 . 60 Anti-Garrison Action 350 | . . . . . 350 . Destroy Structure 280 | . 12 . 59 11 169 29 Lose Combat Pursuer 180 | . 15 . 75 15 60 15 Influence Decreases 2781 | . 409 93 737 524 291 727 Entered New Map 618 | . . 37 7 162 51 361 Time Decay 1713 | . 379 56 620 332 . 326 Lost Part 450 | . 30 . 110 30 240 40 Squads Dispatched 19 | . 2 . 7 3 . 7 Investigation 7 | . 1 . 3 1 . 2 Extermination 4 | . . . . 1 . 3 Reinforcement 8 | . 1 . 4 1 . 2 Assault . | . . . . . . . Garrison . | . . . . . . . Intercept . | . . . . . . . Searches Triggered . | . . . . . . . Construction Impeded . | . . . . . . . Haulers Reinforced 1 | . . . . 1 . . Active Scanning Responses . | . . . . . . . Cargo Convoy Interrupts . | . . . . . . . Stealth | -11 -10 -10 -8 -7 -7 -7 --------- Run | Yrd Mat Sub Mat Fac Gar Fac Distress Signals 7 | . 3 . 4 . . . Communications Jammed . | . . . . . . . Distress Signals . | . . . . . . . Times Spotted 166 | . 17 11 47 15 63 13 Peak Tracking Total 11 | . 5 2 5 5 11 3 Tactical Retreats 15 | . 1 . 5 1 7 1 Traps | -11 -10 -10 -8 -7 -7 -7 ------- Run | Yrd Mat Sub Mat Fac Gar Fac Traps Triggered 9 | . . 4 4 . . 1 Indirectly . | . . . . . . . Trap Hack Attempts . | . . . . . . . Triggered . | . . . . . . . Disarmed . | . . . . . . . Reprogrammed . | . . . . . . . Reused . | . . . . . . . Traps Extracted . | . . . . . . . Installed . | . . . . . . . Triggered . | . . . . . . . Machines | -11 -10 -10 -8 -7 -7 -7 ---------- Run | Yrd Mat Sub Mat Fac Gar Fac Machines Disabled 16 | . 3 1 3 2 3 4 Max in Single Turn 4 | . 1 1 1 1 1 4 Garrison Access 1 | . . . 1 . . . Garrison Relay 1 | . . . . . 1 . Phase Generator 1 | . . . . . 1 . Machines Repaired . | . . . . . . . Machines Dismantled . | . . . . . . . Machines Sabotaged . | . . . . . . . Overloaded Fab Kills . | . . . . . . . Hacking | -11 -10 -10 -8 -7 -7 -7 --------- Run | Yrd Mat Sub Mat Fac Gar Fac Machines Accessed 40 | . 8 2 14 4 2 10 Terminals 25 | . 7 . 10 1 2 5 Fabricators 2 | . . . . 1 . 1 Repair Stations 1 | . . . . . . 1 Recycling Units 6 | . 1 . 2 1 . 2 Scanalyzers 2 | . . . 1 . . 1 Garrison Access 2 | . . . 1 1 . . Total Hacks 107 | . 23 5 40 10 4 25 Successful 62 | . 15 5 25 6 1 10 Failed 44 | . 7 . 15 4 3 15 Catastrophic 9 | . 1 . 3 1 . 4 Database Lockouts 1 | . 1 . . . . . Manual 44 | . 21 . 14 3 . 6 Terminals 65 | . 21 . 22 5 4 13 Fabricators 3 | . . . . 1 . 2 Repair Stations 1 | . . . . . . 1 Recycling Units 15 | . 2 . 4 3 . 6 Scanalyzers 13 | . . . 10 . . 3 Garrison Access 5 | . . . 4 1 . . Terminal Hacks 27 | . 7 5 7 1 1 6 Record 4 | . . 4 . . . . Part Schematic 1 | . 1 . . . . . Robot Schematic 1 | . 1 . . . . . Robot Analysis 3 | . 2 . 1 . . . Prototype ID Bank 1 | . 1 . . . . . Branch Access Points 1 | . . . 1 . . . Emergency Access Points 2 | . . . . . 1 1 Machine Index 1 | . . . 1 . . . Terminal Index 2 | . . . 1 . . 1 Alert Level 2 | . . . . 1 . 1 Locate Traps 2 | . 1 . . . . 1 Recall Investigation 1 | . . . 1 . . . Registered Components 1 | . . . 1 . . . Registered Prototypes 1 | . . . . . . 1 Zone Layout 3 | . 1 . 1 . . 1 Proto ID Catalog 1 | . . 1 . . . . Fabricator Hacks 1 | . . . . . . 1 Network Status 1 | . . . . . . 1 Repair Station Hacks 1 | . . . . . . 1 Refit 1 | . . . . . . 1 Recycling Unit Hacks 6 | . 1 . 2 3 . . Process 1 | . . . . 1 . . Report Inventory 1 | . . . . 1 . . Retrieve Matter 1 | . . . . 1 . . Retrieve Components 3 | . 1 . 2 . . . Scanalyzer 12 | . . . 10 . . 2 Insert Component 2 | . . . 2 . . . Analyze 2 | . . . 2 . . . Retrieve Study 8 | . . . 6 . . 2 Garrison Access Hacks 2 | . . . 1 1 . . Unlock Access 1 | . . . . 1 . . Seal Access 1 | . . . 1 . . . Unauthorized Hacks 13 | . 7 . 5 1 . . Terminals 11 | . 6 . 4 1 . . Botnet 10 | . 5 . 4 1 . . Operators 1 | . 1 . . . . . Fabricators . | . . . . . . . Repair Stations . | . . . . . . . Recycling Units 2 | . 1 . 1 . . . Tunnel 2 | . 1 . 1 . . . Scanalyzers . | . . . . . . . Garrison Access . | . . . . . . . Data Cores Recovered 1 | . 1 . . . . . Used . | . . . . . . . Hacking Detections 35 | . 7 . 13 4 1 10 Full Trace Events 4 | . . . 1 1 1 1 Feedback Events . | . . . . . . . Feedback Blocked . | . . . . . . . Robot Schematics Acquired 1 | . 1 . . . . . Robots Built . | . . . . . . . Authchips . | . . . . . . . Time . | . . . . . . . Total Robot Build Rating . | . . . . . . . Part Schematics Acquired 3 | . 1 . 2 . . . Parts Built . | . . . . . . . Authchips . | . . . . . . . Time . | . . . . . . . Total Part Build Rating . | . . . . . . . Part Studies Acquired 8 | . . . 6 . . 2 Parts Repaired . | . . . . . . . Time . | . . . . . . . Parts Recycled . | . . . . . . . Recycled Matter 186 | . . . . 186 . . Retrieved Matter 640 | . . . . 640 . . Retrieved Components 24 | . 5 . 19 . . . Parts Scanalyzed 2 | . . . 2 . . . Part Schematics Acquired 2 | . . . 2 . . . Parts Damaged . | . . . . . . . Bothacking | -11 -10 -10 -8 -7 -7 -7 ------------ Run | Yrd Mat Sub Mat Fac Gar Fac Used RIF Installer . | . . . . . . . Robots Hacked . | . . . . . . . Non-combat . | . . . . . . . Combat . | . . . . . . . Robot Hacks Applied . | . . . . . . . Relay Couplers Released 7 | . . . . . 7 . Machine Destruction 4 | . . . . . 4 . Programmers 3 | . . . . . 3 . Fabnet Peak Effective % . | . . . . . . . Robots Rewired . | . . . . . . . Allies Hacked . | . . . . . . . Hacks Repelled . | . . . . . . . Allies | -11 -10 -10 -8 -7 -7 -7 -------- Run | Yrd Mat Sub Mat Fac Gar Fac Total Allies . | . . . . . . . Largest Group . | . . . . . . . Highest-Rated Group . | . . . . . . . Highest-Rated Ally . | . . . . . . . Initial Warlord ECA Mod 4 | . . . . . . 4 Total Orders . | . . . . . . . Ally Attacks . | . . . . . . . Total Damage . | . . . . . . . Kills . | . . . . . . . Allies Corrupted . | . . . . . . . Allies Melted . | . . . . . . . Intel | -11 -10 -10 -8 -7 -7 -7 ------- Run | Yrd Mat Sub Mat Fac Gar Fac Active Infowar (turns) 5203 | . . 601 2605 1098 175 724 Optics 718 | . . . 718 . . . Sensors 5107 | . . 601 2605 1002 175 724 T.N.C. 294 | . . . . 294 . . Jamming 15 | . . . . . . 15 ECM 1 | . . . . . . 1 Robot Analysis Total 3 | . 2 . 1 . . . Derelict Logs Recovered . | . . . . . . . Drone Launches . | . . . . . . . Drone Recoveries . | . . . . . . . Exploration | -11 -10 -10 -8 -7 -7 -7 ------------- Run | Yrd Mat Sub Mat Fac Gar Fac Turns Passed 7711 | 42 909 1350 2682 1098 902 728 Spaces Moved 4982 | 43 504 741 1640 694 447 913 Core 77 | 3 . . . . 74 . Treads . | . . . . . . . Legs 39 | . . . . . 39 . Wheels 3771 | 40 504 741 1640 694 152 . Hover 830 | . . . . . . 830 Flight 265 | . . . . . 182 83 Fastest Speed 35 | 50 80 129 113 110 35 35 Average Speed 110 | 77 134 134 119 119 100 63 Slowest Speed 400 | 80 140 175 150 180 400 120 Overloaded Moves . | . . . . . . . Propulsion Burnouts . | . . . . . . . Robots Hopped 1 | . . . . . 1 . Potential Cave-ins . | . . . . . . . Cave-ins Triggered . | . . . . . . . Exploration Rate (%) 44 | 2 87 37 94 17 48 24 Regions Visited 6 Branch Regions 1 Pre-discovered Areas 2 | . 1 . 1 . . . Known Exits Taken 2 | . . . 1 1 . . Unknown Exits Taken 3 | 1 1 1 . . . . Scrap Searched 3 | . . 3 . . . . Spaces Dug 7 | . . . . . 3 4 Terrain Destroyed 411 | . 13 64 64 11 229 30 Melee 4 | . . . . . . 4 Projectile 17 | . . . 4 11 1 1 AOE 389 | . 13 64 60 . 227 25 Terrain Rammed . | . . . . . . . Walls Destroyed . | . . . . . . . Machines Disabled . | . . . . . . . Actions | -11 -10 -10 -8 -7 -7 -7 --------- Run | Yrd Mat Sub Mat Fac Gar Fac Total 6408 | 48 615 1007 2132 866 712 1028 Wait 634 | . 9 170 263 58 95 39 Move 4975 | 42 503 740 1639 694 444 913 Hop 1 | . . . . . 1 . Pick Up 83 | . 19 11 28 18 3 4 Fast Attach 75 | 6 8 1 15 10 8 27 Attach 45 | . 2 7 11 7 17 1 Detach 5 | . 1 . . . 4 . Swap 50 | . 5 17 18 6 4 . Drop 102 | . 7 9 20 24 17 25 Fire 426 | . 60 52 138 49 119 8 Melee 12 | . 1 . . . . 11 Ram . | . . . . . . . Kick . | . . . . . . . Crush . | . . . . . . . Escape Stasis . | . . . . . . . Rewire . | . . . . . . . Trap . | . . . . . . . Miscellaneous . | . . . . . . . Route ------- -11/Scrapyard -10/Materials (discovered 5 exits: [*Mat x2] / [*Min x2] / *Sub) -10/Subcaves (discovered 2 exits: *Mat / [*Scr]) -8/Materials (discovered 3 exits: *Fac x3) -7/Factory -7/Garrison -7/Factory (discovered 2 exits: *Fac x2) History --------- Turn | Location | Event 16 | -11/Scrapyard | Discovered new exit (range 15) 43 | -11/Scrapyard | Entered Materials 322 | -10/Materials | Build established: Mutant 325 | -10/Materials | Discovered new exit (range 15) 584 | -10/Materials | Discovered new exit (range 14) 701 | -10/Materials | Central database locked down 710 | -10/Materials | Discovered new exit (range 8) 814 | -10/Materials | Discovered new exit (range 8) 893 | -10/Materials | Discovered new exit (range 9) 952 | -10/Materials | Entered Subcaves 953 | -10/Subcaves | Approached by a straggling Scientist 1063 | -10/Subcaves | Scientist uncovered a shortcut to Scraptown 1405 | -10/Subcaves | Core integrity fell below 50% 1555 | -10/Subcaves | Visited 4L-MR0's lab 1571 | -10/Subcaves | Found Meta Core 2121 | -10/Subcaves | Visited Clippyterm 2125 | -10/Subcaves | Learned Research security intel 2131 | -10/Subcaves | Discovered new exit (range 14) 2228 | -10/Subcaves | Core integrity fell below 20% 2302 | -10/Subcaves | Entered Materials 2302 | -8/Materials | Evolved 4 slots: Propulsion x1, Utility x3 2792 | -8/Materials | Discovered new exit (range 6) 2797 | -8/Materials | Identified exit to Factory 2934 | -8/Materials | Lost 3 parts (1n2w) 3010 | -8/Materials | Build established: Skirmisher 3353 | -8/Materials | Discovered exit to Factory (range 12) 3531 | -8/Materials | Build established: Mutant 4465 | -8/Materials | Discovered exit to Factory (range 11) 4984 | -8/Materials | Entered Factory 4984 | -7/Factory | Evolved 2 slots: Utility x1, Weapon x1 5245 | -7/Factory | Build established: Skirmisher 6043 | -7/Factory | Found Prototype Launcher 6043 | -7/Factory | Identified Rocket Array 6082 | -7/Factory | Identified exit to Garrison 6082 | -7/Factory | Entered Garrison 6158 | -7/Garrison | Assembled breached garrison interior 6340 | -7/Garrison | Lost 3 parts (1n2w) 6608 | -7/Garrison | Build established: Scavenger-Mutant 6629 | -7/Garrison | System corruption reached 10% 6702 | -7/Garrison | Lost 7 parts (2n4u1w) 6706 | -7/Garrison | Core integrity fell below 50% 6712 | -7/Garrison | Destroyed 17 combat bots 6840 | -7/Garrison | Lost 4 parts (1p1n2u) 6843 | -7/Garrison | Spotted B-75 Beast 6843 | -7/Garrison | Spotted B-75 Beast 6901 | -7/Garrison | Core integrity fell below 20% 6920 | -7/Garrison | Discovered new exit (range 5) 6931 | -7/Garrison | Phase Generator disabled 6933 | -7/Garrison | Identified exit to Factory 6984 | -7/Garrison | Entered Factory 6987 | -7/Factory | Build established: Mutant 6988 | -7/Factory | Discovered new exit (range 6) 6989 | -7/Factory | Identified exit to Factory 7205 | -7/Factory | Discovered exit to Factory (range 7) 7388 | -7/Factory | Lost 3 parts (1u2w) 7712 | -7/Factory | Destroyed by P-60 Hacker with Shock Rifle Last Messages --------------- Current Alert Level: 1-Q >>Traps(Locate) Found 3 traps in 1 array: 3x Shock Trap Map updated. 07685_ ALERT: Suspicious activity at Terminal F006. Dispatching Investigation squad. 07692_ Discarded Melee Analysis Suite. 07693_ Acquired Microactuators. 07694_ Dropped Mni. Assault Cannon. 07695_ Dropped Hcp. Matter Pod. 07695_ Acquired Mni. Assault Cannon. 07696_ Extracted 94 matter. 07698_ Dropped Microactuators. 07699_ Acquired Adv. ECM Suite. 07700_ Dropped Adv. ECM Suite. 07701_ U-05 Engineer builds a Wall. 07709_ System corrupted: Gravmag System+ rejected. 07709_ Destroyed Shock Rifle. Map ----- +----------------------------------------------------+ | ##+#########+######?????????????# + | | #?????????????# # | | #????########?# # | | #????# #?# # | | ############+##^^^#????# #?# # | | #??# ## ##?? # #?############## | | #??# # #?? # = #??????????????# | | #??# # #?? # """" #??????????????# | | #??# """ """ # " #?? # """" ########???????# | | #??# """ """ # #?? # """" ##"""""######### | | #??? """ """ # #?# # """" " """"" | | #??? ### ###?# # """" """" | | #???? #?# #???# # """" " | | ###???###??####### ##### # | | ???????????# # | | ???????????# #####+##### # " ## | | ############ # T r # ######"" #? | | ? # ][!!# #?##" #? | | ????????# # !! # #??#" #? | | ????????# # !! # #??## #? | | ###?????# ###########+## #???# #? | | #?????# #?????# u # ##### ###### #? | | ####### ####### # " #"#?+#? | | + u /u u p/ #####? ???? | | #### #####+####### ! # ####?????????? | | #??# #???????????# ! @#u ###+##????????????? | | #?## ##??????????# !! # + ????????????? | | * ### #??????????######## #### #??????????? | | + #?????????????????# #??# #??????????? | | ] ### #?????????????????# #??# " " #??????????? | | ###?#####????????????????? ???# "R" #??????????? | | ?????????????????????????? Y???# """ #??????????? | | ?????????????????????????? ???########??????????? | | ?????????????????????????###?????????????????????? | | ?????????????????????????????????????????????????? | | ???????????????????????r?????????????????????????? | | ?????????????????????????????????????????????????? | | ?????????????????????????????????????????????????? | | ?????????????????????????????????????????????????? | | ?????????????????????????????????????????????????? | | ?????????????????????????????????????????????????? | | ?????????????????????????????????????????????????? | | ?????????????????????????????????????????????????? | | ?????????????????????????????????????????????????? | | ?????????????????????????????????????????????????? | | ?????????????????????????????????????????????????? | | ?????????????????????????????????????????????????? | | ?????????????????????????????????????????????????? | | ?????????????????????????????????????????????????? | | ?????????????????????????????????????????????????? | +----------------------------------------------------+ Best States ------------- Heat Dissipation 56 Coolant Potential 65 Energy Generation 18 Energy Capacity 310 Matter Stores 300 Matter Capacity 300 Sight Range 20 Robot Scan Range 15 Terrain Scan Density 10 ECM Strength 2 Jamming Range 12 Armor Coverage 825 Evasion (%) 63 Targeting Accuracy 8 Melee Accuracy 10 Core Analysis 6 Matter Filtering 30 Offensive Hacking 20 Item Schematics ----------------- Hcp. Storage Unit | -10/Materials | Hacked Hacking Suite | -8/Materials | Scanalyzed Imp. Sensor Array | -8/Materials | Scanalyzed Robot Schematics ------------------ M-13 Machinist | -10/Materials | Hacked Fabricated ------------ Nothing Repaired ---------- Nothing Studied --------- Wheel | -8/Materials | Hacked Com. Wheel | -8/Materials | Hacked Arm. Wheel | -8/Materials | Hacked Datajack | -8/Materials | Hacked Missile Launcher | -8/Materials | Hacked Plasma Cutter | -8/Materials | Hacked Arm. Huge Wheel | -7/Factory | Hacked Gravmag System | -7/Factory | Hacked Alien Tech Used ----------------- None Achievements -------------- None Challenges ------------ None Game ------ Seed TrackerCoreWings Manual? 0 Play Time 01:19:37 Cumulative 293.9 hours Start 2025.12.14 @ 22:27:25 End 2025.12.14 @ 23:50:17 Sessions 1 Manual Loads 0 Difficulty Rogue Special Mode None Game No. 102 Rogue 102 Adventurer 0 Explorer 0 Win Type - Total 2 Types 1/0/0/0/0/0/0/0/0/1 Lore% 73 Gallery% 68 Achievement% 57 Wizard Run 0 Options --------- Layout 1 ASCII 0 Keyboard 0 Movement Mouse Keybinds 0 Fullscreen 2 Font 32/SmallcapsGlow Map View 50x35 Zoom Use 0% Tactical HUD 1 Map Filters NONE Filters NONE Steam 1 RUN: 7b7d79ea-fa26-4aae-ad5b-1fa1740336c1